[Event "Titled Tuesday Blitz March 07 Early 2023"]
[White "Ansh M Shah"]
[Black "Fernandez Guillen, Ernesto J."]
[WhiteFideId "25033379"]
[BlackFideId "3512428"]
[WhiteElo "2084"]
[BlackElo "2423"]
[Result "0-1"]
[Round "01"]
[TimeControl "180+2"]
[Date "2023.03.07"]
[WhiteClock "0:00:02"]
[BlackClock "0:00:20"]

1. d4 {[%clk 0:02:58]}  Nf6 {[%clk 0:02:42]} 2. c4 {[%clk 0:02:55]}  g6 {[%clk 0:02:40]} 3. h4 {[%clk 0:02:54]}  h6 {[%clk 0:02:37]} 4. Nc3 {[%clk 0:02:55]}  d5 {[%clk 0:02:37]} 5. cxd5 {[%clk 0:02:53]}  Nxd5 {[%clk 0:02:38]} 6. e4 {[%clk 0:02:53]}  Nxc3 {[%clk 0:02:37]} 7. bxc3 {[%clk 0:02:54]}  Bg7 {[%clk 0:02:38]} 8. Be3 {[%clk 0:02:54]}  c5 {[%clk 0:02:36]} 9. h5 {[%clk 0:02:53]}  g5 {[%clk 0:02:35]} 10. Bc4 {[%clk 0:02:44]}  Qa5 {[%clk 0:02:35]} 11. Qd2 {[%clk 0:02:42]}  Nc6 {[%clk 0:02:34]} 12. Ne2 {[%clk 0:02:39]}  cxd4 {[%clk 0:02:32]} 13. cxd4 {[%clk 0:02:38]}  Qxd2+ {[%clk 0:02:33]} 14. Kxd2 {[%clk 0:02:38]}  O-O {[%clk 0:02:32]} 15. Rhd1 {[%clk 0:02:35]}  Bg4 {[%clk 0:02:31]} 16. f3 {[%clk 0:02:35]}  Bxh5 {[%clk 0:02:32]} 17. g4 {[%clk 0:02:31]}  Bg6 {[%clk 0:02:31]} 18. Ke1 {[%clk 0:02:30]}  Rfd8 {[%clk 0:02:22]} 19. Kf2 {[%clk 0:02:29]}  Rac8 {[%clk 0:02:13]} 20. Bb3 {[%clk 0:02:15]}  Na5 {[%clk 0:02:10]} 21. Rdc1 {[%clk 0:02:14]}  e6 {[%clk 0:01:50]} 22. Rxc8 {[%clk 0:01:52]}  Rxc8 {[%clk 0:01:51]} 23. Rc1 {[%clk 0:01:52]}  Rxc1 {[%clk 0:01:50]} 24. Nxc1 {[%clk 0:01:53]}  Nxb3 {[%clk 0:01:51]} 25. Nxb3 {[%clk 0:01:53]}  b6 {[%clk 0:01:51]} 26. a4 {[%clk 0:01:52]}  f5 {[%clk 0:01:51]} 27. exf5 {[%clk 0:01:17]}  exf5 {[%clk 0:01:52]} 28. a5 {[%clk 0:01:17]}  fxg4 {[%clk 0:00:53]} 29. fxg4 {[%clk 0:01:18]}  Bf7 {[%clk 0:00:53]} 30. axb6 {[%clk 0:01:16]}  axb6 {[%clk 0:00:54]} 31. Nd2 {[%clk 0:01:12]}  Bd5 {[%clk 0:00:48]} 32. Nb1 {[%clk 0:01:10]}  Kf7 {[%clk 0:00:46]} 33. Nc3 {[%clk 0:01:10]}  Ke6 {[%clk 0:00:47]} 34. Ke2 {[%clk 0:01:05]}  Bf8 {[%clk 0:00:46]} 35. Na4 {[%clk 0:00:59]}  b5 {[%clk 0:00:44]} 36. Nc5+ {[%clk 0:00:59]}  Kd6 {[%clk 0:00:38]} 37. Bf2 {[%clk 0:00:49]}  Be6 {[%clk 0:00:34]} 38. Kf3 {[%clk 0:00:26]}  Kd5 {[%clk 0:00:34]} 39. Na6 {[%clk 0:00:12]}  Bd6 {[%clk 0:00:32]} 40. Nc5 {[%clk 0:00:11]}  Bc8 {[%clk 0:00:29]} 41. Nb3 {[%clk 0:00:02]}  Kc4 {[%clk 0:00:19]} 42. Nd2+ {[%clk 0:00:02]}  Kd3 {[%clk 0:00:19]} 43. Nb3 {[%clk 0:00:02]}  Bb7+ {[%clk 0:00:20]} 0-1


[Site "https://www.chess.com"]

[Event "Titled Tuesday Blitz March 07 Early 2023"]
[White "Bolourchifard, Farzad"]
[Black "Begunov, Konstantin"]
[WhiteFideId "12510084"]
[BlackFideId "4118510"]
[WhiteElo "2317"]
[BlackElo "2079"]
[Result "1-0"]
[Round "01"]
[TimeControl "180+2"]
[Date "2023.03.07"]
[WhiteClock "0:02:16"]
[BlackClock "0:01:18"]

1. e4 {[%clk 0:03:00]}  c5 {[%clk 0:02:56]} 2. Nc3 {[%clk 0:02:59]}  d6 {[%clk 0:02:55]} 3. g3 {[%clk 0:03:00]}  Nc6 {[%clk 0:02:55]} 4. Bg2 {[%clk 0:03:01]}  g6 {[%clk 0:02:56]} 5. d3 {[%clk 0:03:01]}  Bg7 {[%clk 0:02:56]} 6. Be3 {[%clk 0:03:02]}  Rb8 {[%clk 0:02:54]} 7. Qd2 {[%clk 0:03:02]}  b5 {[%clk 0:02:54]} 8. Nge2 {[%clk 0:03:02]}  b4 {[%clk 0:02:54]} 9. Nd1 {[%clk 0:03:03]}  e6 {[%clk 0:02:52]} 10. O-O {[%clk 0:03:02]}  Bd7 {[%clk 0:02:51]} 11. a3 {[%clk 0:02:56]}  a5 {[%clk 0:02:46]} 12. axb4 {[%clk 0:02:57]}  axb4 {[%clk 0:02:47]} 13. d4 {[%clk 0:02:57]}  Qb6 {[%clk 0:02:25]} 14. e5 {[%clk 0:02:49]}  Nge7 {[%clk 0:01:37]} 15. exd6 {[%clk 0:02:42]}  cxd4 {[%clk 0:01:36]} 16. Nxd4 {[%clk 0:02:19]}  Bxd4 {[%clk 0:01:29]} 17. dxe7 {[%clk 0:02:19]}  Kxe7 {[%clk 0:01:20]} 18. Bxc6 {[%clk 0:02:17]}  Bxe3 {[%clk 0:01:18]} 19. Qxd7+ {[%clk 0:02:16]} 1-0


[Site "https://www.chess.com"]

[Event "Titled Tuesday Blitz March 07 Early 2023"]
[White "Nouri, Alekhine"]
[Black "Bochnicka, Vladimir"]
[WhiteFideId "5216184"]
[BlackFideId "14943450"]
[WhiteElo "2151"]
[BlackElo "2094"]
[Result "1-0"]
[Round "01"]
[TimeControl "180+2"]
[Date "2023.03.07"]
[WhiteClock "0:00:05"]
[BlackClock "0:00:01"]

1. e4 {[%clk 0:03:00]}  c5 {[%clk 0:02:58]} 2. Nf3 {[%clk 0:02:41]}  Nc6 {[%clk 0:02:57]} 3. d4 {[%clk 0:02:42]}  cxd4 {[%clk 0:02:56]} 4. Nxd4 {[%clk 0:02:42]}  e5 {[%clk 0:02:56]} 5. Nb5 {[%clk 0:02:42]}  d6 {[%clk 0:02:56]} 6. N1c3 {[%clk 0:02:42]}  a6 {[%clk 0:02:49]} 7. Na3 {[%clk 0:02:20]}  Be7 {[%clk 0:02:46]} 8. Be3 {[%clk 0:02:19]}  Nf6 {[%clk 0:02:41]} 9. f3 {[%clk 0:02:18]}  b5 {[%clk 0:02:38]} 10. Nd5 {[%clk 0:02:17]}  O-O {[%clk 0:02:36]} 11. Nxe7+ {[%clk 0:02:08]}  Nxe7 {[%clk 0:02:24]} 12. c4 {[%clk 0:02:09]}  b4 {[%clk 0:01:54]} 13. Nc2 {[%clk 0:02:08]}  a5 {[%clk 0:01:54]} 14. Be2 {[%clk 0:02:06]}  Ng6 {[%clk 0:01:47]} 15. Qd2 {[%clk 0:02:05]}  Be6 {[%clk 0:01:44]} 16. Rd1 {[%clk 0:02:03]}  Ne8 {[%clk 0:01:28]} 17. O-O {[%clk 0:01:41]}  Qc7 {[%clk 0:01:27]} 18. b3 {[%clk 0:01:40]}  Kh8 {[%clk 0:01:25]} 19. Bf2 {[%clk 0:01:39]}  f5 {[%clk 0:01:24]} 20. exf5 {[%clk 0:01:38]}  Bxf5 {[%clk 0:01:24]} 21. Ne3 {[%clk 0:01:39]}  Be6 {[%clk 0:01:21]} 22. Bd3 {[%clk 0:01:38]}  Nf4 {[%clk 0:01:21]} 23. Be4 {[%clk 0:01:38]}  Rd8 {[%clk 0:01:19]} 24. Bg3 {[%clk 0:01:37]}  Nf6 {[%clk 0:01:14]} 25. Qc2 {[%clk 0:01:36]}  Qa7 {[%clk 0:00:45]} 26. Bf2 {[%clk 0:01:33]}  Qf7 {[%clk 0:00:44]} 27. Rd2 {[%clk 0:01:01]}  Qh5 {[%clk 0:00:42]} 28. Rfd1 {[%clk 0:00:57]}  Nxe4 {[%clk 0:00:23]} 29. Qxe4 {[%clk 0:00:56]}  Rde8 {[%clk 0:00:22]} 30. Bg3 {[%clk 0:00:04]}  Rf6 {[%clk 0:00:20]} 31. Rxd6 {[%clk 0:00:03]}  Ne2+ {[%clk 0:00:18]} 32. Kf2 {[%clk 0:00:03]}  Nc3 {[%clk 0:00:17]} 33. Qc6 {[%clk 0:00:02]}  Nxd1+ {[%clk 0:00:17]} 34. Nxd1 {[%clk 0:00:02]}  Qg6 {[%clk 0:00:07]} 35. Ne3 {[%clk 0:00:02]}  Bc8 {[%clk 0:00:07]} 36. Rxf6 {[%clk 0:00:01]}  gxf6 {[%clk 0:00:06]} 37. Bh4 {[%clk 0:00:02]}  Rf8 {[%clk 0:00:05]} 38. Nd5 {[%clk 0:00:02]}  Kg7 {[%clk 0:00:05]} 39. Bxf6+ {[%clk 0:00:03]}  Rxf6 {[%clk 0:00:01]} 40. Nxf6 {[%clk 0:00:03]}  Qxf6 {[%clk 0:00:01]} 41. Qxc8 {[%clk 0:00:03]}  Qb6+ {[%clk 0:00:01]} 42. c5 {[%clk 0:00:04]}  Qh6 {[%clk 0:00:01]} 43. Qd7+ {[%clk 0:00:04]}  Kh8 {[%clk 0:00:01]} 44. c6 {[%clk 0:00:05]} 1-0


[Site "https://www.chess.com"]

[Event "Titled Tuesday Blitz March 07 Early 2023"]
[White "Karthik Rajaa"]
[Black "Slade, Theodore"]
[WhiteFideId "25035215"]
[BlackFideId "426547"]
[WhiteElo "2215"]
[BlackElo "1964"]
[Result "0-1"]
[Round "01"]
[TimeControl "180+2"]
[Date "2023.03.07"]
[WhiteClock "0:00:08"]
[BlackClock "0:00:07"]

1. Nf3 {[%clk 0:02:59]}  d5 {[%clk 0:03:00]} 2. d4 {[%clk 0:02:58]}  Nf6 {[%clk 0:03:00]} 3. c4 {[%clk 0:02:59]}  e6 {[%clk 0:03:01]} 4. e3 {[%clk 0:02:59]}  Be7 {[%clk 0:03:01]} 5. Nbd2 {[%clk 0:02:59]}  O-O {[%clk 0:03:01]} 6. b3 {[%clk 0:02:59]}  c5 {[%clk 0:02:59]} 7. Bb2 {[%clk 0:02:59]}  cxd4 {[%clk 0:02:57]} 8. exd4 {[%clk 0:02:57]}  Nc6 {[%clk 0:02:54]} 9. Be2 {[%clk 0:02:53]}  b6 {[%clk 0:02:55]} 10. O-O {[%clk 0:02:51]}  Bb7 {[%clk 0:02:55]} 11. Rc1 {[%clk 0:02:51]}  Rc8 {[%clk 0:02:55]} 12. a3 {[%clk 0:02:48]}  Re8 {[%clk 0:02:43]} 13. c5 {[%clk 0:02:40]}  bxc5 {[%clk 0:02:35]} 14. dxc5 {[%clk 0:02:39]}  Qc7 {[%clk 0:02:11]} 15. b4 {[%clk 0:02:37]}  a6 {[%clk 0:02:10]} 16. Qb3 {[%clk 0:02:16]}  e5 {[%clk 0:02:08]} 17. a4 {[%clk 0:02:15]}  d4 {[%clk 0:01:46]} 18. Nc4 {[%clk 0:02:11]}  Rb8 {[%clk 0:01:39]} 19. Nb6 {[%clk 0:01:59]}  a5 {[%clk 0:01:32]} 20. b5 {[%clk 0:01:48]}  Nb4 {[%clk 0:01:32]} 21. Ba3 {[%clk 0:01:44]}  Bxc5 {[%clk 0:01:29]} 22. Bxb4 {[%clk 0:01:39]}  axb4 {[%clk 0:01:29]} 23. a5 {[%clk 0:01:04]}  Bxf3 {[%clk 0:01:15]} 24. Bxf3 {[%clk 0:01:01]}  e4 {[%clk 0:01:09]} 25. Na4 {[%clk 0:00:29]}  Rxb5 {[%clk 0:01:00]} 26. Be2 {[%clk 0:00:20]}  d3 {[%clk 0:00:56]} 27. Bxd3 {[%clk 0:00:19]}  exd3 {[%clk 0:00:53]} 28. Qxd3 {[%clk 0:00:20]}  Rxa5 {[%clk 0:00:50]} 29. Nb2 {[%clk 0:00:20]}  Qa7 {[%clk 0:00:44]} 30. Nc4 {[%clk 0:00:19]}  Ra2 {[%clk 0:00:44]} 31. Qf3 {[%clk 0:00:18]}  Ne4 {[%clk 0:00:42]} 32. Ne3 {[%clk 0:00:17]}  Nd2 {[%clk 0:00:40]} 33. Qc6 {[%clk 0:00:16]}  Rb8 {[%clk 0:00:24]} 34. Rfd1 {[%clk 0:00:14]}  Nb3 {[%clk 0:00:16]} 35. Rb1 {[%clk 0:00:11]}  Nd4 {[%clk 0:00:15]} 36. Qe4 {[%clk 0:00:10]}  Ne2+ {[%clk 0:00:15]} 37. Kh1 {[%clk 0:00:10]}  Nc3 {[%clk 0:00:15]} 38. Qh4 {[%clk 0:00:08]}  Nxd1 {[%clk 0:00:15]} 39. Rxd1 {[%clk 0:00:08]}  h6 {[%clk 0:00:15]} 40. Nf5 {[%clk 0:00:08]}  Bf8 {[%clk 0:00:13]} 41. Qg4 {[%clk 0:00:08]}  Kh7 {[%clk 0:00:11]} 42. Qe4 {[%clk 0:00:08]}  g6 {[%clk 0:00:11]} 43. Ne3 {[%clk 0:00:07]}  Rxf2 {[%clk 0:00:11]} 44. Ng4 {[%clk 0:00:08]}  Rf5 {[%clk 0:00:09]} 45. Ne3 {[%clk 0:00:08]}  Ra5 {[%clk 0:00:07]} 46. Nd5 {[%clk 0:00:08]}  Bg7 {[%clk 0:00:06]} 47. Ne7 {[%clk 0:00:08]}  Re8 {[%clk 0:00:06]} 48. Re1 {[%clk 0:00:07]}  Re5 {[%clk 0:00:07]} 49. Qxb4 {[%clk 0:00:07]}  Rxe1+ {[%clk 0:00:06]} 50. Qxe1 {[%clk 0:00:08]}  Qxe7 {[%clk 0:00:06]} 51. Qf1 {[%clk 0:00:09]}  Qe1 {[%clk 0:00:06]} 52. Kg1 {[%clk 0:00:08]}  Bd4+ {[%clk 0:00:07]} 0-1


[Site "https://www.chess.com"]

[Event "Titled Tuesday Blitz March 07 Early 2023"]
[White "Bouchet, Sebastien"]
[Black "Petrosian, Karlen"]
[WhiteFideId "623571"]
[BlackFideId "4176146"]
[WhiteElo "2390"]
[BlackElo "2345"]
[Result "0-1"]
[Round "01"]
[TimeControl "180+2"]
[Date "2023.03.07"]
[WhiteClock "0:00:29"]
[BlackClock "0:00:34"]

1. e4 {[%clk 0:03:00]}  c5 {[%clk 0:02:58]} 2. c3 {[%clk 0:03:00]}  Nf6 {[%clk 0:02:56]} 3. e5 {[%clk 0:03:01]}  Nd5 {[%clk 0:02:57]} 4. d4 {[%clk 0:03:01]}  cxd4 {[%clk 0:02:57]} 5. Nf3 {[%clk 0:03:02]}  d6 {[%clk 0:02:56]} 6. Bc4 {[%clk 0:03:02]}  Nb6 {[%clk 0:02:21]} 7. Bb3 {[%clk 0:03:01]}  Nc6 {[%clk 0:02:14]} 8. exd6 {[%clk 0:02:59]}  Qxd6 {[%clk 0:02:14]} 9. O-O {[%clk 0:02:59]}  dxc3 {[%clk 0:02:12]} 10. Qe2 {[%clk 0:02:56]}  e6 {[%clk 0:02:02]} 11. Nxc3 {[%clk 0:02:55]}  Be7 {[%clk 0:01:54]} 12. Rd1 {[%clk 0:02:36]}  Qc5 {[%clk 0:01:50]} 13. Be3 {[%clk 0:02:34]}  Qh5 {[%clk 0:01:50]} 14. Ne4 {[%clk 0:02:32]}  O-O {[%clk 0:01:47]} 15. Ng3 {[%clk 0:02:32]}  Qa5 {[%clk 0:01:43]} 16. Rac1 {[%clk 0:02:18]}  Nd5 {[%clk 0:01:35]} 17. Bg5 {[%clk 0:02:15]}  Bxg5 {[%clk 0:01:25]} 18. Nxg5 {[%clk 0:02:16]}  h6 {[%clk 0:01:25]} 19. N5e4 {[%clk 0:01:56]}  Nf4 {[%clk 0:01:14]} 20. Qf3 {[%clk 0:01:46]}  e5 {[%clk 0:01:11]} 21. Nd6 {[%clk 0:01:45]}  Qc7 {[%clk 0:00:51]} 22. Nge4 {[%clk 0:01:31]}  Qe7 {[%clk 0:00:48]} 23. Nc5 {[%clk 0:01:10]}  h5 {[%clk 0:00:39]} 24. Nxc8 {[%clk 0:01:05]}  Raxc8 {[%clk 0:00:38]} 25. Rd7 {[%clk 0:01:06]}  Qg5 {[%clk 0:00:37]} 26. Qe3 {[%clk 0:00:43]}  Nd4 {[%clk 0:00:34]} 27. h4 {[%clk 0:00:29]}  Qxg2# {[%clk 0:00:34]} 0-1


[Site "https://www.chess.com"]

[Event "Titled Tuesday Blitz March 07 Early 2023"]
[White "Levitskiy, Andrey"]
[Black "Miszler, Levente"]
[WhiteFideId "14132885"]
[BlackFideId "763276"]
[WhiteElo "2335"]
[BlackElo "2176"]
[Result "0-1"]
[Round "01"]
[TimeControl "180+2"]
[Date "2023.03.07"]
[WhiteClock "0:00:06"]
[BlackClock "0:00:18"]

1. e4 {[%clk 0:02:59]}  e6 {[%clk 0:02:58]} 2. d4 {[%clk 0:02:56]}  d5 {[%clk 0:02:58]} 3. Bd3 {[%clk 0:02:57]}  Nc6 {[%clk 0:02:56]} 4. c3 {[%clk 0:02:56]}  g6 {[%clk 0:02:52]} 5. e5 {[%clk 0:02:47]}  Bg7 {[%clk 0:02:51]} 6. h4 {[%clk 0:02:43]}  f6 {[%clk 0:02:41]} 7. h5 {[%clk 0:02:39]}  Kf7 {[%clk 0:02:41]} 8. exf6 {[%clk 0:01:47]}  Nxf6 {[%clk 0:02:37]} 9. h6 {[%clk 0:01:46]}  Bf8 {[%clk 0:02:37]} 10. Nf3 {[%clk 0:01:47]}  Bd6 {[%clk 0:02:32]} 11. Bg5 {[%clk 0:01:44]}  e5 {[%clk 0:02:26]} 12. dxe5 {[%clk 0:01:37]}  Nxe5 {[%clk 0:02:27]} 13. Nxe5+ {[%clk 0:01:22]}  Bxe5 {[%clk 0:02:28]} 14. Nd2 {[%clk 0:01:19]}  Re8 {[%clk 0:02:26]} 15. Kf1 {[%clk 0:01:15]}  Qd6 {[%clk 0:02:21]} 16. Nf3 {[%clk 0:01:13]}  Bf4 {[%clk 0:02:20]} 17. Qc2 {[%clk 0:00:58]}  Bg4 {[%clk 0:02:16]} 18. Rh4 {[%clk 0:00:46]}  Re6 {[%clk 0:01:19]} 19. Qa4 {[%clk 0:00:41]}  d4 {[%clk 0:01:00]} 20. Bc4 {[%clk 0:00:29]}  Re8 {[%clk 0:00:53]} 21. Rxg4 {[%clk 0:00:20]}  Nxg4 {[%clk 0:00:50]} 22. Bxf4 {[%clk 0:00:14]}  Qxf4 {[%clk 0:00:47]} 23. Qd7+ {[%clk 0:00:14]}  Kf6 {[%clk 0:00:36]} 24. Qg7+ {[%clk 0:00:14]}  Kf5 {[%clk 0:00:36]} 25. Nxd4+ {[%clk 0:00:15]}  Kg5 {[%clk 0:00:35]} 26. Nf3+ {[%clk 0:00:06]}  Kh5 {[%clk 0:00:33]} 27. Bxe6 {[%clk 0:00:06]}  Rxe6 {[%clk 0:00:32]} 28. Re1 {[%clk 0:00:05]}  Rxe1+ {[%clk 0:00:25]} 29. Kxe1 {[%clk 0:00:06]}  Qc1+ {[%clk 0:00:25]} 30. Ke2 {[%clk 0:00:07]}  Qc2+ {[%clk 0:00:25]} 31. Nd2 {[%clk 0:00:07]}  Qf5 {[%clk 0:00:22]} 32. f3 {[%clk 0:00:06]}  Ne5 {[%clk 0:00:19]} 33. Qxe5 {[%clk 0:00:07]}  Qxe5+ {[%clk 0:00:19]} 34. Ne4 {[%clk 0:00:06]}  Kxh6 {[%clk 0:00:18]} 35. g4 {[%clk 0:00:07]}  Qh2+ {[%clk 0:00:17]} 36. Ke3 {[%clk 0:00:07]}  Qxb2 {[%clk 0:00:18]} 37. a4 {[%clk 0:00:07]}  Qa3 {[%clk 0:00:17]} 38. Kd3 {[%clk 0:00:06]}  Qxa4 {[%clk 0:00:18]} 0-1


[Site "https://www.chess.com"]

[Event "Titled Tuesday Blitz March 07 Early 2023"]
[White "Zhukova, Natalia"]
[Black "Msellek, Ilyass"]
[WhiteFideId "14101513"]
[BlackFideId "675938"]
[WhiteElo "2297"]
[BlackElo "2287"]
[Result "0-1"]
[Round "01"]
[TimeControl "180+2"]
[Date "2023.03.07"]
[WhiteClock "0:00:02"]
[BlackClock "0:01:05"]

1. c4 {[%clk 0:02:58]}  Nf6 {[%clk 0:02:59]} 2. Nc3 {[%clk 0:02:57]}  c6 {[%clk 0:03:00]} 3. e4 {[%clk 0:02:53]}  d5 {[%clk 0:03:00]} 4. exd5 {[%clk 0:02:51]}  cxd5 {[%clk 0:03:00]} 5. cxd5 {[%clk 0:02:51]}  Nxd5 {[%clk 0:02:57]} 6. d4 {[%clk 0:02:51]}  Nc6 {[%clk 0:02:57]} 7. Nf3 {[%clk 0:02:50]}  Bg4 {[%clk 0:02:58]} 8. Bc4 {[%clk 0:02:40]}  e6 {[%clk 0:02:54]} 9. O-O {[%clk 0:02:37]}  Be7 {[%clk 0:02:51]} 10. h3 {[%clk 0:02:04]}  Bh5 {[%clk 0:02:49]} 11. Nxd5 {[%clk 0:01:42]}  exd5 {[%clk 0:02:47]} 12. Be2 {[%clk 0:01:43]}  O-O {[%clk 0:02:44]} 13. Be3 {[%clk 0:01:43]}  Bf6 {[%clk 0:02:40]} 14. Qd2 {[%clk 0:01:31]}  Re8 {[%clk 0:02:35]} 15. Rad1 {[%clk 0:01:30]}  Rc8 {[%clk 0:02:34]} 16. Rfe1 {[%clk 0:01:29]}  Qb6 {[%clk 0:02:33]} 17. Ne5 {[%clk 0:01:25]}  Bxe2 {[%clk 0:02:31]} 18. Rxe2 {[%clk 0:01:22]}  Qa6 {[%clk 0:02:19]} 19. Nxc6 {[%clk 0:00:44]}  Rxc6 {[%clk 0:02:20]} 20. Rde1 {[%clk 0:00:44]}  Qxa2 {[%clk 0:02:13]} 21. Bg5 {[%clk 0:00:38]}  Rxe2 {[%clk 0:02:14]} 22. Rxe2 {[%clk 0:00:33]}  Re6 {[%clk 0:02:04]} 23. Bxf6 {[%clk 0:00:23]}  gxf6 {[%clk 0:02:00]} 24. Re3 {[%clk 0:00:17]}  Rxe3 {[%clk 0:01:57]} 25. Qxe3 {[%clk 0:00:15]}  Qb1+ {[%clk 0:01:45]} 26. Kh2 {[%clk 0:00:14]}  Kf8 {[%clk 0:01:43]} 27. Qf4 {[%clk 0:00:13]}  Kg7 {[%clk 0:01:35]} 28. Qg3+ {[%clk 0:00:12]}  Qg6 {[%clk 0:01:36]} 29. Qd6 {[%clk 0:00:11]}  Qe4 {[%clk 0:01:36]} 30. Qg3+ {[%clk 0:00:10]}  Kf8 {[%clk 0:01:36]} 31. Qd6+ {[%clk 0:00:10]}  Kg7 {[%clk 0:01:31]} 32. Qg3+ {[%clk 0:00:10]}  Kh6 {[%clk 0:01:32]} 33. Qc7 {[%clk 0:00:04]}  Qxd4 {[%clk 0:01:24]} 34. Qxf7 {[%clk 0:00:04]}  Qe5+ {[%clk 0:01:25]} 35. Kg1 {[%clk 0:00:04]}  d4 {[%clk 0:01:26]} 36. g3 {[%clk 0:00:04]}  d3 {[%clk 0:01:23]} 37. Qd7 {[%clk 0:00:04]}  Qe1+ {[%clk 0:01:20]} 38. Kg2 {[%clk 0:00:05]}  d2 {[%clk 0:01:21]} 39. Qf5 {[%clk 0:00:03]}  Qe5 {[%clk 0:01:17]} 40. Qd7 {[%clk 0:00:01]}  Qe4+ {[%clk 0:01:16]} 41. Kh2 {[%clk 0:00:02]}  Qe2 {[%clk 0:01:09]} 42. Qf5 {[%clk 0:00:02]}  Kg7 {[%clk 0:01:04]} 43. Qd7+ {[%clk 0:00:02]}  Kg6 {[%clk 0:01:05]} 0-1


[Site "https://www.chess.com"]

[Event "Titled Tuesday Blitz March 07 Early 2023"]
[White "Matutururu, Maxman"]
[Black "Preotu, Razvan"]
[WhiteFideId "11004487"]
[BlackFideId "2613280"]
[WhiteElo "2386"]
[BlackElo "2407"]
[Result "1-0"]
[Round "01"]
[TimeControl "180+2"]
[Date "2023.03.07"]
[WhiteClock "0:00:46"]
[BlackClock "0:00:01"]

1. d4 {[%clk 0:02:56]}  Nf6 {[%clk 0:02:59]} 2. c4 {[%clk 0:02:55]}  g6 {[%clk 0:02:59]} 3. Nf3 {[%clk 0:02:55]}  Bg7 {[%clk 0:02:59]} 4. g3 {[%clk 0:02:56]}  O-O {[%clk 0:02:56]} 5. Bg2 {[%clk 0:02:56]}  d5 {[%clk 0:02:56]} 6. cxd5 {[%clk 0:02:55]}  Nxd5 {[%clk 0:02:57]} 7. O-O {[%clk 0:02:55]}  Nb6 {[%clk 0:02:57]} 8. Nc3 {[%clk 0:02:55]}  Nc6 {[%clk 0:02:53]} 9. d5 {[%clk 0:02:55]}  Na5 {[%clk 0:02:53]} 10. e4 {[%clk 0:02:55]}  c6 {[%clk 0:02:51]} 11. Bf4 {[%clk 0:02:55]}  cxd5 {[%clk 0:02:49]} 12. Nxd5 {[%clk 0:02:56]}  Nxd5 {[%clk 0:02:47]} 13. exd5 {[%clk 0:02:57]}  Nc4 {[%clk 0:02:46]} 14. b3 {[%clk 0:02:54]}  Nb6 {[%clk 0:02:37]} 15. d6 {[%clk 0:02:30]}  exd6 {[%clk 0:02:32]} 16. Bxd6 {[%clk 0:02:20]}  Bxa1 {[%clk 0:02:26]} 17. Bxf8 {[%clk 0:02:19]}  Qxd1 {[%clk 0:02:20]} 18. Rxd1 {[%clk 0:02:19]}  Kxf8 {[%clk 0:02:20]} 19. Rxa1 {[%clk 0:02:19]}  h6 {[%clk 0:01:31]} 20. Rc1 {[%clk 0:02:16]}  Be6 {[%clk 0:01:31]} 21. Nd4 {[%clk 0:02:14]}  Bd5 {[%clk 0:01:31]} 22. Rc7 {[%clk 0:02:07]}  Rd8 {[%clk 0:01:25]} 23. Nb5 {[%clk 0:01:53]}  a6 {[%clk 0:01:20]} 24. Nc3 {[%clk 0:01:40]}  Bxg2 {[%clk 0:01:19]} 25. Kxg2 {[%clk 0:01:40]}  Rd7 {[%clk 0:01:19]} 26. Rxd7 {[%clk 0:01:39]}  Nxd7 {[%clk 0:01:20]} 27. Nd5 {[%clk 0:01:37]}  Ne5 {[%clk 0:01:14]} 28. f4 {[%clk 0:01:36]}  Nd3 {[%clk 0:01:14]} 29. Kf3 {[%clk 0:01:34]}  Nc5 {[%clk 0:00:32]} 30. b4 {[%clk 0:01:31]}  Ne6 {[%clk 0:00:30]} 31. a4 {[%clk 0:01:28]}  f5 {[%clk 0:00:24]} 32. Ke3 {[%clk 0:01:26]}  Ke8 {[%clk 0:00:24]} 33. a5 {[%clk 0:01:19]}  Kd7 {[%clk 0:00:24]} 34. Kd3 {[%clk 0:01:19]}  Kd6 {[%clk 0:00:25]} 35. Kc4 {[%clk 0:01:14]}  g5 {[%clk 0:00:25]} 36. Ne3 {[%clk 0:01:11]}  Ng7 {[%clk 0:00:17]} 37. h4 {[%clk 0:01:08]}  gxf4 {[%clk 0:00:16]} 38. gxf4 {[%clk 0:01:08]}  Kc6 {[%clk 0:00:14]} 39. Nc2 {[%clk 0:01:01]}  h5 {[%clk 0:00:05]} 40. Nd4+ {[%clk 0:00:59]}  Kd6 {[%clk 0:00:06]} 41. b5 {[%clk 0:00:55]}  axb5+ {[%clk 0:00:05]} 42. Kxb5 {[%clk 0:00:54]}  Kd5 {[%clk 0:00:06]} 43. Ne2 {[%clk 0:00:50]}  Ne6 {[%clk 0:00:07]} 44. Kb6 {[%clk 0:00:49]}  Nc5 {[%clk 0:00:07]} 45. Ng3 {[%clk 0:00:48]}  Na4+ {[%clk 0:00:01]} 46. Kxb7 {[%clk 0:00:46]} 1-0


[Site "https://www.chess.com"]

[Event "Titled Tuesday Blitz March 07 Early 2023"]
[White "Kucuksari, Kaan"]
[Black "Valle Maytin, Luis Enrique"]
[WhiteFideId "6380166"]
[BlackFideId "3503666"]
[WhiteElo "2364"]
[BlackElo "2225"]
[Result "1-0"]
[Round "01"]
[TimeControl "180+2"]
[Date "2023.03.07"]
[WhiteClock "0:00:25"]
[BlackClock "0:00:04"]

1. d4 {[%clk 0:02:57]}  Nf6 {[%clk 0:02:58]} 2. Bg5 {[%clk 0:02:57]}  Ne4 {[%clk 0:02:51]} 3. Bf4 {[%clk 0:02:57]}  d5 {[%clk 0:02:51]} 4. e3 {[%clk 0:02:56]}  g6 {[%clk 0:02:44]} 5. Nd2 {[%clk 0:02:54]}  Nxd2 {[%clk 0:02:40]} 6. Qxd2 {[%clk 0:02:55]}  Bg7 {[%clk 0:02:41]} 7. h4 {[%clk 0:02:53]}  h5 {[%clk 0:02:23]} 8. Nf3 {[%clk 0:02:52]}  Bg4 {[%clk 0:02:21]} 9. Ne5 {[%clk 0:02:51]}  Be6 {[%clk 0:02:20]} 10. Bd3 {[%clk 0:02:50]}  Nd7 {[%clk 0:02:18]} 11. Nf3 {[%clk 0:02:42]}  a6 {[%clk 0:02:12]} 12. Ng5 {[%clk 0:02:39]}  Nf8 {[%clk 0:02:08]} 13. c4 {[%clk 0:02:36]}  dxc4 {[%clk 0:02:05]} 14. Nxe6 {[%clk 0:02:36]}  Nxe6 {[%clk 0:02:05]} 15. Bxc4 {[%clk 0:02:36]}  Nxf4 {[%clk 0:02:05]} 16. exf4 {[%clk 0:02:37]}  Qxd4 {[%clk 0:02:03]} 17. Qxd4 {[%clk 0:02:26]}  Bxd4 {[%clk 0:02:04]} 18. O-O {[%clk 0:02:21]}  e6 {[%clk 0:01:58]} 19. Rad1 {[%clk 0:02:11]}  O-O-O {[%clk 0:01:53]} 20. b3 {[%clk 0:02:06]}  Rd6 {[%clk 0:01:47]} 21. g3 {[%clk 0:02:02]}  Rhd8 {[%clk 0:01:47]} 22. Kg2 {[%clk 0:02:02]}  c5 {[%clk 0:01:44]} 23. Be2 {[%clk 0:01:57]}  Kc7 {[%clk 0:01:40]} 24. Rc1 {[%clk 0:01:56]}  Kb6 {[%clk 0:01:38]} 25. Rc2 {[%clk 0:01:55]}  Bf6 {[%clk 0:01:30]} 26. Rfc1 {[%clk 0:01:50]}  Rd2 {[%clk 0:01:29]} 27. Kf3 {[%clk 0:01:48]}  Bb2 {[%clk 0:01:24]} 28. Rxd2 {[%clk 0:01:48]}  Rxd2 {[%clk 0:01:25]} 29. Rd1 {[%clk 0:01:46]}  Rxd1 {[%clk 0:01:09]} 30. Bxd1 {[%clk 0:01:47]}  Kb5 {[%clk 0:01:04]} 31. f5 {[%clk 0:01:36]}  gxf5 {[%clk 0:00:12]} 32. Kf4 {[%clk 0:01:34]}  Bc1+ {[%clk 0:00:13]} 33. Ke5 {[%clk 0:01:34]}  Kc6 {[%clk 0:00:11]} 34. Bf3+ {[%clk 0:00:45]}  Kc7 {[%clk 0:00:04]} 35. Kf6 {[%clk 0:00:25]} 1-0


[Site "https://www.chess.com"]